[Event "FIDE U16 Olympiad_boards_81-124"]
[Site "Eindhoven, Netherlands"]
[Date "2023.08.13"]
[Round "1.11"]
[White "Sun, Chang-Jyu"]
[Black "Vincenti, Leonardo"]
[Result "0-1"]
[TimeControl "45min+10sec"]
[WhiteElo "1238"]
[BlackElo "2180"]

1. e4 {[%clk 00:45:08]} {[%emt 00:00:12]} c5 {[%clk 00:45:19]} 2. c3 {[%clk
00:45:13]} {[%emt 00:00:05]} d5 {[%clk 00:45:24]} {[%emt 00:00:04]} 3. exd5
{[%clk 00:45:19]} {[%emt 00:00:05]} Qxd5 {[%clk 00:45:31]} {[%emt 00:00:04]} 4.
d4 {[%clk 00:45:23]} {[%emt 00:00:06]} Nc6 {[%clk 00:45:25]} {[%emt 00:00:15]}
5. Nf3 {[%clk 00:45:27]} {[%emt 00:00:06]} Bf5 {[%clk 00:45:33]} {[%emt
00:00:02]} 6. Be3 {[%clk 00:45:11]} {[%emt 00:00:25]} Nf6 {[%clk 00:45:39]}
{[%emt 00:00:04]} 7. Be2 {[%clk 00:44:16]} {[%emt 00:01:06]} cxd4 {[%clk
00:45:02]} {[%emt 00:00:48]} 8. Nxd4 {[%clk 00:43:53]} {[%emt 00:00:32]} Nxd4
{[%clk 00:42:47]} {[%emt 00:02:24]} 9. cxd4 {[%clk 00:43:59]} {[%emt 00:00:05]}
e6 {[%clk 00:42:17]} {[%emt 00:00:40]} 10. O-O {[%clk 00:43:41]} {[%emt
00:00:28]} Bxb1 {[%clk 00:41:13]} {[%emt 00:01:14]} 11. Qa4+ {[%clk 00:42:38]}
{[%emt 00:01:14]} Nd7 {[%clk 00:38:33]} {[%emt 00:02:49]} 12. Raxb1 {[%clk
00:42:16]} {[%emt 00:00:31]} Qd6 {[%clk 00:33:43]} {[%emt 00:05:00]} 13. Bf3
{[%clk 00:39:04]} {[%emt 00:03:22]} Rb8 {[%clk 00:33:53]} {[%emt 00:00:01]} 14.
g3 {[%clk 00:37:01]} {[%emt 00:02:13]} Qa6 {[%clk 00:33:23]} {[%emt 00:00:40]}
15. Qxa6 {[%clk 00:35:24]} {[%emt 00:01:47]} bxa6 {[%clk 00:33:31]} {[%emt
00:00:02]} 16. Bc6 {[%clk 00:34:33]} {[%emt 00:01:00]} Bd6 {[%clk 00:26:30]}
{[%emt 00:07:12]} 17. Rfe1 {[%clk 00:33:39]} {[%emt 00:01:04]} Ke7 {[%clk
00:25:01]} {[%emt 00:01:38]} 18. d5 {[%clk 00:31:25]} {[%emt 00:02:25]} Ne5
{[%clk 00:24:31]} {[%emt 00:00:40]} 19. Kg2 {[%clk 00:26:33]} {[%emt 00:05:01]}
Nxc6 {[%clk 00:22:04]} {[%emt 00:02:37]} 20. dxc6 {[%clk 00:26:34]} {[%emt
00:00:10]} Rbc8 {[%clk 00:20:28]} {[%emt 00:01:46]} 21. Rec1 {[%clk 00:25:27]}
{[%emt 00:01:16]} Rc7 {[%clk 00:19:59]} {[%emt 00:00:39]} 22. Rc4 {[%clk
00:24:40]} {[%emt 00:00:57]} Rb8 {[%clk 00:18:27]} {[%emt 00:01:43]} 23. b4
{[%clk 00:24:14]} {[%emt 00:00:35]} Rbc8 {[%clk 00:14:43]} {[%emt 00:03:54]} 24.
Rbc1 {[%clk 00:18:51]} {[%emt 00:05:33]} Rb8 {[%clk 00:14:53]} {[%emt
00:00:01]} 25. a4 {[%clk 00:16:01]} {[%emt 00:03:01]} Rxb4 {[%clk 00:14:30]}
{[%emt 00:00:32]} 26. Rxb4 {[%clk 00:16:03]} {[%emt 00:00:08]} Bxb4 {[%clk
00:14:38]} {[%emt 00:00:02]} 27. Bxa7 {[%clk 00:15:52]} {[%emt 00:00:20]} Ba5
{[%clk 00:12:19]} {[%emt 00:02:29]} 28. Bc5+ {[%clk 00:12:46]} {[%emt
00:03:16]} Ke8 {[%clk 00:10:21]} {[%emt 00:02:09]} 29. Bd6 {[%clk 00:12:25]}
{[%emt 00:00:31]} Rc8 {[%clk 00:10:30]} {[%emt 00:00:02]} 30. g4 {[%clk
00:08:45]} {[%emt 00:03:48]} Bc7 {[%clk 00:09:55]} {[%emt 00:00:46]} 31. Bg3
{[%clk 00:05:37]} {[%emt 00:03:17]} Bxg3 {[%clk 00:08:13]} {[%emt 00:01:53]} 32.
Kxg3 {[%clk 00:04:57]} {[%emt 00:00:49]} Ke7 {[%clk 00:08:22]} {[%emt
00:00:02]} 33. Rb1 {[%clk 00:03:42]} {[%emt 00:01:24]} Rxc6 {[%clk 00:08:27]}
{[%emt 00:00:06]} 34. Rb7+ {[%clk 00:03:45]} {[%emt 00:00:07]} Kf6 {[%clk
00:08:27]} {[%emt 00:00:10]} 35. Rb4 {[%clk 00:02:24]} {[%emt 00:01:31]} g5
{[%clk 00:07:23]} {[%emt 00:01:13]} 36. h4 {[%clk 00:02:09]} {[%emt 00:00:26]}
h6 {[%clk 00:05:57]} {[%emt 00:01:36]} 37. hxg5+ {[%clk 00:02:07]} {[%emt
00:00:12]} hxg5 {[%clk 00:06:01]} {[%emt 00:00:06]} 38. Kh3 {[%clk 00:01:43]}
{[%emt 00:00:34]} Ke5 {[%clk 00:05:13]} {[%emt 00:01:27]} 39. Rb7 {[%clk
00:01:16]} {[%emt 00:00:38]} Rc3+ {[%clk 00:04:43]} {[%emt 00:00:39]} 40. Kg2
{[%clk 00:01:21]} {[%emt 00:00:04]} Rc4 {[%clk 00:04:53]} {[%emt 00:00:02]} 41.
Kg3 {[%clk 00:01:25]} {[%emt 00:00:05]} f6 {[%clk 00:04:20]} {[%emt 00:00:43]}
42. a5 {[%clk 00:00:52]} {[%emt 00:00:43]} Rc5 {[%clk 00:04:23]} {[%emt
00:00:05]} 43. Rb3 {[%clk 00:00:45]} {[%emt 00:00:19]} Rxa5 {[%clk 00:04:27]}
{[%emt 00:00:06]} 44. Re3+ {[%clk 00:00:53]} {[%emt 00:00:01]} Kd6 {[%clk
00:04:25]} {[%emt 00:00:12]} 45. f4 {[%clk 00:00:58]} {[%emt 00:00:06]} gxf4+
{[%clk 00:04:13]} {[%emt 00:00:22]} 46. Kxf4 {[%clk 00:01:06]} {[%emt
00:00:02]} Ra4+ {[%clk 00:04:21]} {[%emt 00:00:01]} 47. Kg3 {[%clk 00:01:12]}
{[%emt 00:00:05]} a5 {[%clk 00:04:13]} {[%emt 00:00:18]} 48. Rf3 {[%clk
00:01:09]} {[%emt 00:00:13]} Ke7 {[%clk 00:04:04]} {[%emt 00:00:19]} 49. Rc3
{[%clk 00:01:17]} {[%emt 00:00:02]} Rb4 {[%clk 00:03:56]} {[%emt 00:00:18]} 50.
Rc7+ {[%clk 00:01:26]} {[%emt 00:00:01]} Kd6 {[%clk 00:04:05]} {[%emt
00:00:01]} 51. Rf7 {[%clk 00:01:34]} {[%emt 00:00:02]} Ke5 {[%clk 00:04:14]}
{[%emt 00:00:01]} 52. Ra7 {[%clk 00:01:32]} {[%emt 00:00:12]} a4 {[%clk
00:04:22]} {[%emt 00:00:02]} 53. Ra5+ {[%clk 00:01:40]} {[%emt 00:00:02]} Kd6
{[%clk 00:02:59]} {[%emt 00:01:32]} 54. Ra6+ {[%clk 00:01:49]} {[%emt
00:00:02]} Ke7 {[%clk 00:03:09]} 55. Ra7+ {[%clk 00:01:57]} {[%emt 00:00:01]}
Kf8 {[%clk 00:03:18]} 56. Ra8+ {[%clk 00:02:06]} {[%emt 00:00:02]} Kf7 {[%clk
00:03:27]} 57. Ra7+ {[%clk 00:02:14]} {[%emt 00:00:02]} Kg6 {[%clk 00:03:36]}
58. Ra6 {[%clk 00:02:20]} {[%emt 00:00:04]} Kg5 {[%clk 00:03:45]} {[%emt
00:00:01]} 59. Rxe6 {[%clk 00:02:20]} {[%emt 00:00:10]} Rxg4+ {[%clk 00:03:41]}
{[%emt 00:00:14]} 60. Kf3 {[%clk 00:02:20]} {[%emt 00:00:09]} Rb4 {[%clk
00:03:48]} {[%emt 00:00:03]} 61. Ra6 {[%clk 00:02:25]} {[%emt 00:00:07]} f5
{[%clk 00:03:31]} {[%emt 00:00:26]} 62. Ra5 {[%clk 00:02:34]} {[%emt 00:00:01]}
Rb3+ {[%clk 00:03:40]} {[%emt 00:00:01]} 63. Kf2 {[%clk 00:02:36]} {[%emt
00:00:07]} a3 {[%clk 00:03:45]} {[%emt 00:00:05]} 64. Kf1 {[%clk 00:02:32]}
{[%emt 00:00:15]} Kg4 {[%clk 00:03:44]} {[%emt 00:00:11]} 65. Ke1 {[%clk
00:02:29]} {[%emt 00:00:12]} f4 {[%clk 00:03:50]} {[%emt 00:00:05]} 66. Kd2
{[%clk 00:02:11]} {[%emt 00:00:28]} f3 {[%clk 00:03:39]} {[%emt 00:00:20]} 67.
Kc2 {[%clk 00:02:13]} {[%emt 00:00:08]} Rb2+ {[%clk 00:03:46]} {[%emt
00:00:03]} 68. Kc3 {[%clk 00:01:57]} {[%emt 00:00:26]} f2 {[%clk 00:03:54]}
{[%emt 00:00:02]} 69. Rxa3 {[%clk 00:02:04]} {[%emt 00:00:03]} Rb1 {[%clk
00:03:54]} {[%emt 00:00:11]} 70. Ra4+ {[%clk 00:01:45]} {[%emt 00:00:29]} Kg3
{[%clk 00:04:00]} {[%emt 00:00:03]} 71. Kd4 {[%emt 00:00:47]} 0-1

[Event "FIDE U16 Olympiad_boards_81-124"]
[Site "Eindhoven, Netherlands"]
[Date "2023.08.13"]
[Round "1.12"]
[White "Zito, Enrica"]
[Black "Tsai, Sophie Yi-Hsuan"]
[Result "1-0"]
[TimeControl "45min+10sec"]
[WhiteElo "1625"]
[BlackElo "1155"]

1. e4 {[%clk 00:45:19]} {[%emt 00:00:01]} c5 {[%clk 00:45:19]} {[%emt
00:00:01]} 2. c3 {[%clk 00:45:24]} {[%emt 00:00:05]} Nf6 {[%clk 00:45:23]}
{[%emt 00:00:06]} 3. e5 {[%clk 00:45:33]} {[%emt 00:00:02]} Nd5 {[%clk
00:45:31]} 4. Nf3 {[%clk 00:45:41]} {[%emt 00:00:02]} Nc6 {[%clk 00:44:48]}
{[%emt 00:00:53]} 5. d4 {[%clk 00:45:50]} {[%emt 00:00:01]} cxd4 {[%clk
00:44:46]} {[%emt 00:00:11]} 6. cxd4 {[%clk 00:45:59]} {[%emt 00:00:02]} d6
{[%clk 00:43:45]} {[%emt 00:01:11]} 7. Bc4 {[%clk 00:46:05]} {[%emt 00:00:04]}
Nb6 {[%clk 00:43:43]} {[%emt 00:00:11]} 8. Bb5 {[%clk 00:46:01]} {[%emt
00:00:15]} a6 {[%clk 00:41:16]} {[%emt 00:02:36]} 9. Bxc6+ {[%clk 00:44:44]}
{[%emt 00:01:28]} bxc6 {[%clk 00:41:17]} {[%emt 00:00:08]} 10. Qc2 {[%clk
00:42:45]} {[%emt 00:02:10]} Bb7 {[%clk 00:38:17]} {[%emt 00:03:09]} 11. e6
{[%clk 00:38:03]} {[%emt 00:04:54]} f6 {[%clk 00:31:48]} {[%emt 00:06:38]} 12.
O-O {[%clk 00:35:44]} {[%emt 00:02:29]} Qc8 {[%clk 00:27:50]} {[%emt 00:04:08]}
13. Qe2 {[%clk 00:32:20]} {[%emt 00:03:35]} a5 {[%clk 00:27:34]} {[%emt
00:00:25]} 14. Rd1 {[%clk 00:30:45]} {[%emt 00:01:45]} Ba6 {[%clk 00:26:57]}
{[%emt 00:00:47]} 15. Qe1 {[%clk 00:29:19]} {[%emt 00:01:36]} Bc4 {[%clk
00:26:25]} {[%emt 00:00:41]} 16. Be3 {[%clk 00:20:03]} {[%emt 00:09:27]} Bxe6
{[%clk 00:26:00]} {[%emt 00:00:33]} 17. Na3 {[%clk 00:19:04]} {[%emt 00:01:10]}
Bd5 {[%clk 00:20:24]} {[%emt 00:05:46]} 18. Nd2 {[%clk 00:15:56]} {[%emt
00:03:19]} h5 {[%clk 00:19:03]} {[%emt 00:01:32]} 19. Rac1 {[%clk 00:15:17]}
{[%emt 00:00:48]} h4 {[%clk 00:16:38]} {[%emt 00:02:35]} 20. h3 {[%clk
00:14:47]} {[%emt 00:00:41]} g5 {[%clk 00:15:05]} {[%emt 00:01:43]} 21. f3
{[%clk 00:13:10]} {[%emt 00:01:47]} Bg7 {[%clk 00:13:56]} {[%emt 00:01:18]} 22.
Ndc4 {[%clk 00:12:56]} {[%emt 00:00:24]} Nxc4 {[%clk 00:13:04]} {[%emt
00:01:02]} 23. Nxc4 {[%clk 00:13:05]} {[%emt 00:00:01]} Qa6 {[%clk 00:09:43]}
{[%emt 00:03:30]} 24. b3 {[%clk 00:12:04]} {[%emt 00:01:12]} Kf7 {[%clk
00:08:53]} {[%emt 00:01:00]} 25. Bd2 {[%clk 00:11:35]} {[%emt 00:00:40]} a4
{[%clk 00:08:44]} {[%emt 00:00:17]} 26. Ne3 {[%clk 00:09:32]} {[%emt 00:02:14]}
axb3 {[%clk 00:08:38]} {[%emt 00:00:16]} 27. Nxd5 {[%clk 00:09:33]} {[%emt
00:00:09]} cxd5 {[%clk 00:08:41]} {[%emt 00:00:07]} 28. axb3 {[%clk 00:09:42]}
{[%emt 00:00:01]} Rhc8 {[%clk 00:07:50]} {[%emt 00:01:02]} 29. Qe3 {[%clk
00:07:16]} {[%emt 00:02:36]} Rxc1 {[%clk 00:06:59]} {[%emt 00:00:59]} 30. Bxc1
{[%clk 00:06:39]} {[%emt 00:00:48]} Re8 {[%clk 00:06:39]} {[%emt 00:00:29]} 31.
f4 {[%clk 00:06:26]} {[%emt 00:00:25]} gxf4 {[%clk 00:04:46]} {[%emt 00:02:02]}
32. Qf3 {[%clk 00:05:13]} {[%emt 00:01:23]} e6 {[%clk 00:03:31]} {[%emt
00:01:25]} 33. Bxf4 {[%clk 00:05:05]} {[%emt 00:00:18]} Rh8 {[%clk 00:03:10]}
{[%emt 00:00:31]} 34. Bg5 {[%clk 00:04:49]} {[%emt 00:00:26]} Ke7 {[%clk
00:03:05]} {[%emt 00:00:15]} 35. Rf1 {[%clk 00:04:40]} {[%emt 00:00:19]} Rf8
{[%clk 00:02:51]} {[%emt 00:00:24]} 36. Bxh4 {[%clk 00:04:46]} {[%emt
00:00:05]} Qb6 {[%clk 00:02:50]} {[%emt 00:00:10]} 37. Qg4 {[%clk 00:04:34]}
{[%emt 00:00:22]} Rf7 {[%clk 00:01:16]} {[%emt 00:01:43]} 38. Kh1 {[%clk
00:03:49]} {[%emt 00:00:56]} Qb7 {[%clk 00:00:43]} {[%emt 00:00:42]} 39. Re1
{[%clk 00:03:49]} {[%emt 00:00:11]} Qd7 {[%clk 00:00:52]} {[%emt 00:00:02]} 40.
Qh5 {[%clk 00:03:53]} {[%emt 00:00:05]} Qc6 {[%clk 00:00:47]} {[%emt 00:00:15]}
41. Qf5 {[%clk 00:03:54]} {[%emt 00:00:09]} Qd7 {[%clk 00:00:34]} {[%emt
00:00:22]} 42. Qxd5 {[%clk 00:04:02]} {[%emt 00:00:03]} Kf8 {[%clk 00:00:42]}
{[%emt 00:00:03]} 43. Qa8+ {[%clk 00:04:09]} {[%emt 00:00:03]} Ke7 {[%clk
00:00:36]} {[%emt 00:00:16]} 44. Ra1 {[%clk 00:04:12]} {[%emt 00:00:06]} Qe8
{[%clk 00:00:29]} {[%emt 00:00:16]} 45. Ra7+ {[%clk 00:04:21]} {[%emt
00:00:02]} Kf8 {[%clk 00:00:38]} 46. Qxe8+ {[%clk 00:04:09]} {[%emt 00:00:22]}
Kxe8 {[%clk 00:00:47]} {[%emt 00:00:01]} 47. Rxf7 {[%clk 00:04:18]} {[%emt
00:00:02]} Kxf7 {[%clk 00:00:55]} {[%emt 00:00:02]} 48. Bg3 {[%clk 00:04:23]}
{[%emt 00:00:05]} e5 {[%clk 00:00:51]} {[%emt 00:00:13]} 49. d5 {[%clk
00:04:09]} {[%emt 00:00:25]} f5 {[%clk 00:00:55]} {[%emt 00:00:06]} 50. Bh4
{[%clk 00:04:02]} {[%emt 00:00:17]} Bh6 {[%clk 00:00:46]} {[%emt 00:00:18]} 51.
Kg1 {[%clk 00:04:06]} {[%emt 00:00:07]} Be3+ {[%clk 00:00:32]} {[%emt
00:00:23]} 52. Bf2 {[%clk 00:04:14]} {[%emt 00:00:02]} Bg5 {[%clk 00:00:30]}
{[%emt 00:00:11]} 53. Kf1 {[%clk 00:04:21]} {[%emt 00:00:04]} Kg6 {[%clk
00:00:31]} {[%emt 00:00:09]} 54. b4 {[%clk 00:04:30]} {[%emt 00:00:01]} Bd8
{[%clk 00:00:26]} {[%emt 00:00:14]} 55. Ba7 {[%clk 00:04:39]} {[%emt 00:00:02]}
e4 {[%clk 00:00:14]} {[%emt 00:00:22]} 56. Ke2 {[%clk 00:04:48]} {[%emt
00:00:02]} f4 {[%clk 00:00:21]} {[%emt 00:00:02]} 57. b5 {[%clk 00:04:56]}
{[%emt 00:00:02]} Kf5 {[%clk 00:00:26]} {[%emt 00:00:05]} 58. Bd4 {[%clk
00:04:10]} {[%emt 00:00:56]} Bc7 {[%clk 00:00:27]} {[%emt 00:00:08]} 59. b6
{[%clk 00:04:05]} {[%emt 00:00:16]} Bb8 {[%clk 00:00:36]} {[%emt 00:00:02]} 60.
Bg7 {[%clk 00:04:08]} {[%emt 00:00:06]} Kg6 {[%clk 00:00:29]} {[%emt 00:00:17]}
61. Bf8 {[%clk 00:04:13]} {[%emt 00:00:05]} Kf5 {[%clk 00:00:35]} {[%emt
00:00:03]} 62. Be7 {[%clk 00:03:51]} {[%emt 00:00:32]} Ke5 {[%clk 00:00:14]}
{[%emt 00:00:32]} 63. Bd8 {[%clk 00:03:59]} {[%emt 00:00:02]} Kxd5 {[%clk
00:00:17]} {[%emt 00:00:07]} 64. Bc7 {[%clk 00:04:08]} {[%emt 00:00:02]} 1-0

[Event "FIDE U16 Olympiad_boards_81-124"]
[Site "Eindhoven, Netherlands"]
[Date "2023.08.13"]
[Round "1.13"]
[White "Grgantov, Marin"]
[Black "Wangthumboon, Patawee"]
[Result "1/2-1/2"]
[TimeControl "45min+10sec"]
[WhiteElo "2192"]
[BlackElo "1452"]

1. e4 {[%clk 00:45:17]} {[%emt 00:00:03]} c5 {[%clk 00:45:17]} {[%emt
00:00:04]} 2. Nc3 {[%clk 00:45:24]} {[%emt 00:00:02]} e6 {[%clk 00:45:21]}
{[%emt 00:00:07]} 3. f4 {[%clk 00:45:18]} {[%emt 00:00:15]} Nc6 {[%clk
00:45:21]} {[%emt 00:00:10]} 4. Nf3 {[%clk 00:45:13]} {[%emt 00:00:16]} Nge7
{[%clk 00:45:18]} {[%emt 00:00:13]} 5. d3 {[%clk 00:44:16]} {[%emt 00:01:07]}
g6 {[%clk 00:43:58]} {[%emt 00:01:30]} 6. g3 {[%clk 00:43:14]} {[%emt
00:01:12]} Bg7 {[%clk 00:43:34]} {[%emt 00:00:34]} 7. Bg2 {[%clk 00:43:21]}
{[%emt 00:00:03]} O-O {[%clk 00:43:11]} {[%emt 00:00:33]} 8. O-O {[%clk
00:43:28]} {[%emt 00:00:03]} Rb8 {[%clk 00:41:44]} {[%emt 00:01:37]} 9. Be3
{[%clk 00:42:58]} {[%emt 00:00:40]} Nd4 {[%clk 00:40:28]} {[%emt 00:01:26]} 10.
Ne2 {[%clk 00:40:12]} {[%emt 00:02:56]} Nxe2+ {[%clk 00:37:52]} {[%emt
00:02:46]} 11. Qxe2 {[%clk 00:40:20]} {[%emt 00:00:02]} b6 {[%clk 00:37:53]}
{[%emt 00:00:08]} 12. d4 {[%clk 00:39:12]} {[%emt 00:01:18]} cxd4 {[%clk
00:32:58]} {[%emt 00:05:05]} 13. Nxd4 {[%clk 00:39:19]} {[%emt 00:00:03]} Bb7
{[%clk 00:32:59]} {[%emt 00:00:10]} 14. Rfd1 {[%clk 00:37:44]} {[%emt
00:01:44]} d5 {[%clk 00:18:35]} {[%emt 00:14:35]} 15. c4 {[%clk 00:34:54]}
{[%emt 00:03:00]} Qe8 {[%clk 00:15:00]} {[%emt 00:03:45]} 16. cxd5 {[%clk
00:33:47]} {[%emt 00:01:17]} exd5 {[%clk 00:15:06]} {[%emt 00:00:04]} 17. e5
{[%clk 00:33:40]} {[%emt 00:00:16]} Qd7 {[%clk 00:13:49]} {[%emt 00:01:27]} 18.
Qf1 {[%clk 00:31:07]} {[%emt 00:02:43]} Nf5 {[%clk 00:10:58]} {[%emt 00:03:02]}
19. Nxf5 {[%clk 00:28:51]} {[%emt 00:02:25]} Qxf5 {[%clk 00:11:05]} {[%emt
00:00:04]} 20. Bxd5 {[%clk 00:28:10]} {[%emt 00:00:51]} Bxd5 {[%clk 00:11:05]}
{[%emt 00:00:10]} 21. Rxd5 {[%clk 00:28:18]} {[%emt 00:00:02]} Qe4 {[%clk
00:10:11]} {[%emt 00:01:04]} 22. Qd3 {[%clk 00:28:12]} {[%emt 00:00:15]} Qxd3
{[%clk 00:09:52]} {[%emt 00:00:30]} 23. Rxd3 {[%clk 00:28:21]} {[%emt
00:00:02]} Rfc8 {[%clk 00:07:20]} {[%emt 00:02:41]} 24. Rad1 {[%clk 00:27:04]}
{[%emt 00:01:26]} Bf8 {[%clk 00:06:50]} {[%emt 00:00:41]} 25. Rd7 {[%clk
00:22:49]} {[%emt 00:04:24]} Rc2 {[%clk 00:05:20]} {[%emt 00:01:41]} 26. R1d2
{[%clk 00:21:33]} {[%emt 00:01:26]} Rbc8 {[%clk 00:03:16]} {[%emt 00:02:14]} 27.
Rxa7 {[%clk 00:14:14]} {[%emt 00:07:28]} Bc5 {[%clk 00:03:05]} {[%emt
00:00:21]} 28. Rd3 {[%clk 00:09:13]} {[%emt 00:05:12]} Bxe3+ {[%clk 00:03:10]}
{[%emt 00:00:05]} 29. Rxe3 {[%clk 00:09:21]} {[%emt 00:00:01]} Rxb2 {[%clk
00:03:19]} 30. Rf3 {[%clk 00:08:38]} {[%emt 00:00:54]} Rc1+ {[%clk 00:03:21]}
{[%emt 00:00:08]} 31. Rf1 {[%clk 00:08:46]} {[%emt 00:00:03]} Rcc2 {[%clk
00:03:29]} {[%emt 00:00:01]} 32. Rf3 {[%clk 00:06:24]} {[%emt 00:02:33]} Rc1+
{[%clk 00:03:29]} {[%emt 00:00:09]} 33. Rf1 {[%clk 00:06:31]} {[%emt 00:00:02]}
Rcc2 {[%clk 00:03:38]} {[%emt 00:00:02]} 34. Rf3 {[%clk 00:06:40]} 1/2-1/2

[Event "FIDE U16 Olympiad_boards_81-124"]
[Site "Eindhoven, Netherlands"]
[Date "2023.08.13"]
[Round "1.14"]
[White "Saipetch, Kai"]
[Black "Colev, Ivor"]
[Result "0-1"]
[TimeControl "45min+10sec"]
[WhiteElo "1270"]
[BlackElo "1895"]

1. e4 {[%clk 00:45:17]} {[%emt 00:00:04]} c5 {[%clk 00:45:19]} 2. c3 {[%clk
00:45:23]} {[%emt 00:00:04]} d6 {[%clk 00:45:24]} {[%emt 00:00:05]} 3. d4
{[%clk 00:45:15]} {[%emt 00:00:18]} Nf6 {[%clk 00:45:10]} {[%emt 00:00:24]} 4.
Bd3 {[%clk 00:44:46]} {[%emt 00:00:39]} Nc6 {[%clk 00:45:14]} {[%emt 00:00:06]}
5. Nf3 {[%clk 00:44:51]} {[%emt 00:00:06]} Bg4 {[%clk 00:44:12]} {[%emt
00:01:11]} 6. Qa4 {[%clk 00:42:52]} {[%emt 00:02:08]} Bd7 {[%clk 00:38:05]}
{[%emt 00:06:17]} 7. Qb3 {[%clk 00:41:23]} {[%emt 00:01:39]} b6 {[%clk
00:31:09]} {[%emt 00:07:06]} 8. O-O {[%clk 00:38:03]} {[%emt 00:03:30]} e6
{[%clk 00:28:59]} {[%emt 00:02:22]} 9. Bf4 {[%clk 00:33:05]} {[%emt 00:05:07]}
Be7 {[%clk 00:21:41]} {[%emt 00:07:28]} 10. Na3 {[%clk 00:32:23]} {[%emt
00:00:52]} O-O {[%clk 00:20:05]} {[%emt 00:01:46]} 11. Nc4 {[%clk 00:30:52]}
{[%emt 00:01:41]} d5 {[%clk 00:18:28]} {[%emt 00:01:47]} 12. exd5 {[%clk
00:30:13]} {[%emt 00:00:49]} exd5 {[%clk 00:18:35]} {[%emt 00:00:03]} 13. Nce5
{[%clk 00:27:02]} {[%emt 00:03:21]} c4 {[%clk 00:17:36]} {[%emt 00:01:10]} 14.
Nxc6 {[%clk 00:25:19]} {[%emt 00:01:52]} Bxc6 {[%clk 00:17:39]} {[%emt
00:00:07]} 15. Bxc4 {[%clk 00:25:23]} {[%emt 00:00:06]} dxc4 {[%clk 00:17:45]}
{[%emt 00:00:04]} 16. Qxc4 {[%clk 00:25:15]} {[%emt 00:00:18]} Bxf3 {[%clk
00:17:38]} {[%emt 00:00:16]} 17. gxf3 {[%clk 00:25:19]} {[%emt 00:00:07]} Qd5
{[%clk 00:17:19]} {[%emt 00:00:28]} 18. Qd3 {[%clk 00:23:57]} {[%emt 00:01:32]}
Nh5 {[%clk 00:16:24]} {[%emt 00:01:06]} 19. Bd2 {[%clk 00:20:26]} {[%emt
00:03:40]} Bd6 {[%clk 00:15:36]} {[%emt 00:00:58]} 20. Kh1 {[%clk 00:18:12]}
{[%emt 00:02:25]} Nf4 {[%clk 00:12:44]} {[%emt 00:03:02]} 21. Bxf4 {[%clk
00:17:44]} {[%emt 00:00:37]} Bxf4 {[%clk 00:12:52]} {[%emt 00:00:02]} 22. Rg1
{[%clk 00:17:30]} {[%emt 00:00:25]} Qh5 {[%clk 00:11:02]} {[%emt 00:02:01]} 23.
Rg2 {[%clk 00:17:24]} {[%emt 00:00:15]} Rae8 {[%clk 00:11:02]} {[%emt
00:00:10]} 24. d5 {[%clk 00:13:54]} {[%emt 00:03:40]} Re5 {[%clk 00:05:43]}
{[%emt 00:05:29]} 25. c4 {[%clk 00:11:15]} {[%emt 00:02:49]} Rfe8 {[%clk
00:05:42]} {[%emt 00:00:11]} 26. Qc3 {[%clk 00:10:38]} {[%emt 00:00:46]} Qh6
{[%clk 00:03:50]} {[%emt 00:02:04]} 27. Rd1 {[%clk 00:07:46]} {[%emt 00:03:00]}
Rh5 {[%clk 00:03:34]} {[%emt 00:00:27]} 0-1